bitfinex/quotes_SOLUSD_20260221
["timestamp","ask_amount","ask_price","bid_price","bid_amount"]
[1771694281791,0.5706571,86.164,86.14,4.15205909]
[1771694281978,0.5706571,86.164,86.15,4.15205909]
[1771694282776,0.5706571,86.164,86.131,11.61020696]
[1771694282777,0.5706571,86.164,86.14,4.15205909]
[1771694283894,0.5706571,86.162,86.14,4.15205909]
[1771694284678,0.5706571,86.159,86.12,4.15205909]
[1771694285895,0.5706571,86.157,86.13,4.15205909]
[1771694287197,11.60685268,86.156,86.13,4.15205909]
[1771694287503,0.5706571,86.155,86.13,4.15205909]
[1771694290092,0.5706571,86.153,86.12,4.15205909]
[1771694290998,0.5706571,86.151,86.11,4.15205909]
[1771694291981,0.5706571,86.151,86.11,4.14413276]
[1771694293095,0.5706571,86.151,86.09,3.69383402]
[1771694293096,0.5706571,86.149,86.095,0.28432314]
[1771694293691,0.5706571,86.149,86.095,0.14216157]
[1771694294004,0.5706571,86.139,86.095,0.28432314]
[1771694295078,0.5706571,86.139,86.094,29.03792202]
[1771694295079,0.5706571,86.129,86.091,11.61561603]
[1771694297903,4.14413276,86.13,86.091,11.61561603]
[1771694297904,0.5706571,86.127,86.091,11.61561603]
[1771694299401,11.61089566,86.126,86.091,11.61561603]
[1771694299700,0.5706571,86.125,86.091,11.61561603]
[1771694300591,0.5706571,86.125,86.1,4.14413276]
[1771694300898,0.5706571,86.149,86.1,4.14413276]
[1771694301200,0.5706571,86.148,86.11,4.14413276]
[1771694303394,4.14413276,86.15,86.11,4.14413276]
[1771694303395,0.5706571,86.146,86.11,4.14413276]
[1771694306207,0.5706571,86.144,86.1,4.14413276]
[1771694306398,0.5706571,86.129,86.09,4.14413276]
[1771694307403,0.5706571,86.127,86.091,11.61561603]
[1771694308694,0.5706571,86.119,86.082,11.61670862]
[1771694309507,0.5706571,86.117,86.09,4.14413276]
[1771694310605,0.5706571,86.115,86.09,4.14413276]
[1771694313110,0.5706571,86.113,86.09,4.14413276]
[1771694314608,0.5706571,86.113,86.08,4.14413276]
[1771694314801,0.5706571,86.109,86.07,4.14413276]
[1771694315107,0.5706571,86.107,86.071,11.61831511]
[1771694315415,0.5706571,86.107,86.08,4.14413276]
[1771694318820,0.5706571,86.105,86.08,4.14413276]
[1771694321402,0.5706571,86.103,86.08,4.14413276]
[1771694322719,0.5706571,86.101,86.08,4.14413276]
[1771694324109,0.5706571,86.101,86.07,4.14413276]
[1771694326806,0.5706571,86.101,86.071,11.61831511]
[1771694328010,0.5706571,86.101,86.061,11.61966512]
[1771694336427,0.5706571,86.099,86.051,11.62101544]
[1771694337419,0.5706571,86.089,86.051,11.62101544]
[1771694337819,0.5706571,86.087,86.051,11.62101544]
[1771694339228,0.5706571,86.079,86.051,11.62101544]
[1771694340327,0.5706571,86.079,86.05,4.14413276]
[1771694340931,0.5706571,86.077,86.04,4.14413276]
[1771694341131,0.5706571,86.059,86.033,11.62335625]
[1771694342939,0.5706571,86.057,86.021,11.62506829]
[1771694343118,0.5706571,86.049,86.01,4.14413276]
[1771694344134,4.14413276,86.05,86.01,4.14413276]
[1771694344135,11.6214206,86.048,86.011,11.62641987]
[1771694344316,0.5706571,86.047,86.011,11.62641987]
[1771694348128,11.62169072,86.046,86.011,11.62641987]
[1771694348329,0.5706571,86.045,86.011,11.62641987]
[1771694350945,0.5706571,86.043,86.011,11.62641987]
[1771694352429,0.5706571,86.043,86.008,29.06682712]
[1771694352635,0.5706571,86.039,86.001,11.62777177]
[1771694353527,0.5706571,86.039,86.01,4.14413276]
[1771694353937,0.5706571,86.039,86.01,4.15493476]
[1771694354953,0.5706571,86.039,86.011,11.62641987]
[1771694365135,0.5706571,86.037,86.005,11.62709598]
[1771694365540,0.5706571,86.029,86.0,0.2]
[1771694367550,0.5706571,86.027,86.0,0.2]
[1771694370659,0.5706571,86.025,86.0,0.2]
[1771694373652,0.5706571,86.019,85.99,0.2]
[1771694373960,11.62466288,86.024,85.97,0.2]
[1771694373961,0.54877543,86.009,85.972,0.17757854]
[1771694374459,0.54877543,85.999,85.972,0.17757854]
[1771694374954,0.54877543,85.999,85.976,11.63112855]
[1771694379554,0.54877543,85.999,85.974,0.37889337]
[1771694380670,4.15493476,86.01,85.981,0.53773121]
[1771694381050,11.62669023,86.009,85.981,0.53773121]
[1771694382552,0.55734728,86.006,85.981,0.53773121]
[1771694385876,0.54524548,86.021,85.991,0.54189939]
[1771694387072,0.54524548,86.018,85.983,0.54189939]
[1771694392962,0.54524548,86.018,85.97,0.2]
[1771694392963,0.54524548,86.009,85.978,0.54189939]
[1771694394585,0.54524548,86.007,85.978,0.54189939]
[1771694397775,0.54524548,85.989,85.97,0.2]
[1771694398684,11.62709578,86.006,85.96,11.83324585]
[1771694398685,0.54524548,85.979,85.96,0.2]
[1771694398884,0.54524548,85.979,85.95,0.2]
[1771694398885,0.54524548,85.969,85.95,0.2]
[1771694399188,0.54524548,85.959,85.94,0.1]
[1771694400787,0.54524548,85.959,85.925,29.09494748]
[1771694400788,0.54524548,85.949,85.923,12.18013983]
[1771694401670,0.54524548,85.949,85.924,0.54189939]
[1771694401870,11.63287952,85.964,85.931,0.54189939]
[1771694402186,0.54524548,85.961,85.931,0.54189939]
[1771694402378,0.54524548,85.961,85.94,4.15493476]
[1771694402587,0.54524548,85.961,85.941,0.54189939]
[1771694404193,11.63272231,85.965,85.941,0.54189939]
[1771694404382,29.07804016,85.976,85.951,0.54189939]
[1771694404383,11.63121648,85.976,85.951,0.54189939]
[1771694404696,11.63049128,85.981,85.961,0.54189939]
[1771694405076,12.17573676,85.981,85.961,0.54189939]
[1771694405995,0.54524548,85.98,85.961,0.54189939]
[1771694407103,11.63074704,85.979,85.961,0.54189939]
[1771694407966,0.5400174,85.978,85.961,0.54189939]
[1771694408591,0.5400174,85.978,85.955,0.52551887]
[1771694409392,4.15493476,85.98,85.955,0.52551887]
[1771694409393,0.5400174,85.976,85.955,0.52551887]
[1771694410308,0.5400174,85.981,85.96,4.15493476]
[1771694410602,0.5400174,85.981,85.957,0.52551887]
[1771694412382,0.54306905,85.979,85.96,4.15493476]
[1771694412584,0.54306905,85.979,85.961,0.51661198]
[1771694413476,12.17303773,85.985,85.961,0.51661198]
[1771694413676,4.15493476,86.01,85.971,0.51661198]
[1771694413974,4.1585804,86.01,85.971,0.51661198]
[1771694414173,0.28432314,86.009,85.971,0.51661198]
[1771694414793,4.1585804,86.01,85.971,0.51661198]
[1771694414992,29.06766577,86.007,85.971,0.51661198]
[1771694415695,0.54306905,86.006,85.971,0.51661198]
[1771694416591,0.54306905,85.999,85.966,11.63243797]
[1771694417184,0.54306905,85.999,85.967,0.51661198]
[1771694418300,0.54306905,85.997,85.967,0.51661198]
[1771694419410,0.54306905,85.997,85.971,0.51661198]
[1771694422619,0.54306905,86.002,85.972,0.51661198]
[1771694424300,0.54306905,85.999,85.972,0.51661198]
[1771694431316,11.62817739,85.998,85.972,0.51661198]
[1771694431500,0.54306905,85.997,85.972,0.51661198]
[1771694437926,11.62844783,85.996,85.972,0.51661198]
[1771694438120,0.52497128,85.995,85.972,0.51661198]
[1771694438428,0.52497128,86.0,85.981,0.56997023]
[1771694439427,0.52497128,86.0,85.94,3.69383402]
[1771694439428,0.52497128,85.999,85.961,0.56997023]
[1771694446040,0.52497128,85.997,85.961,0.56997023]
[1771694447416,0.52497128,85.997,85.97,4.1585804]
[1771694447638,0.52497128,85.997,85.971,0.56997023]
[1771694450629,11.62844783,85.996,85.971,0.56997023]
[1771694450938,0.52497128,85.995,85.971,0.56997023]
[1771694452543,0.52497128,85.993,85.971,0.56997023]
[1771694453743,11.6270199,86.007,85.981,0.56997023]
[1771694454432,12.15199118,86.007,85.981,0.56997023]
[1771694455445,11.6270199,86.007,85.981,0.56997023]
[1771694455650,12.15199118,86.007,85.981,0.56997023]
[1771694456130,0.52497128,86.006,85.981,0.56997023]
[1771694459841,0.52497128,86.006,85.983,0.56997023]
[1771694460034,0.52497128,86.014,85.991,0.56997023]
[1771694460232,0.52497128,86.027,86.0,4.1585804]
[1771694460540,0.52497128,86.027,86.011,0.56997023]
[1771694461547,11.62425118,86.028,86.011,0.56997023]
[1771694461743,0.52497128,86.055,86.012,11.6262847]
[1771694461947,0.52497128,86.055,86.021,0.56997023]
[1771694462332,40.67135405,86.056,86.0,0.56997023]
[1771694462333,0.52497128,86.029,86.0,0.56997023]
[1771694462937,0.52497128,86.029,86.002,0.56997023]
[1771694463238,12.14863855,86.032,86.01,4.1585804]
[1771694463445,11.62366727,86.032,86.011,0.56997023]
[1771694463645,0.52497128,86.031,86.011,0.56997023]
[1771694464842,0.52497128,86.07,86.025,0.56997023]
[1771694465042,0.52497128,86.07,86.05,4.72855063]
[1771694465229,0.52497128,86.07,86.051,0.56997023]
[1771694465831,0.52497128,86.07,86.041,0.56997023]
[1771694466541,0.52497128,86.07,86.043,0.56997023]
[1771694467645,0.52497128,86.07,86.05,4.1585804]
[1771694467843,4.1585804,86.08,86.044,11.62196085]
[1771694467844,0.53236454,86.088,86.051,0.55857788]
[1771694468143,0.1,86.09,86.071,0.55857788]
[1771694469646,0.1,86.1,86.081,0.55857788]
[1771694469944,0.1,86.1,86.09,4.71715828]
[1771694470126,0.1,86.1,86.08,4.1585804]
[1771694470325,0.55348978,86.099,86.08,4.1585804]
[1771694471056,0.55348978,86.109,86.08,4.1585804]
[1771694471836,0.55348978,86.109,86.09,4.1585804]
[1771694472058,0.1,86.11,86.09,4.1585804]
[1771694472263,0.1,86.11,86.091,0.38800022]
[1771694472440,0.1,86.12,86.101,0.28931421]
[1771694474135,0.1,86.12,86.08,4.1585804]
[1771694474136,0.55348978,86.142,86.111,0.19068444]
[1771694474353,0.55348978,86.142,86.12,4.1585804]
[1771694475960,0.55348978,86.142,86.12,4.14494356]
[1771694478863,0.55348978,86.142,86.12,4.34264747]
[1771694479854,0.55348978,86.142,86.121,0.19905743]
[1771694482173,0.55348978,86.14,86.094,0.20171841]
[1771694482466,0.55348978,86.139,86.1,4.14494356]
[1771694482838,0.55348978,86.139,86.093,11.81837688]
[1771694483044,0.55348978,86.129,86.1,4.14494356]
[1771694484361,0.55348978,86.127,86.094,0.20561411]
[1771694486759,11.61089566,86.126,86.1,4.14494356]
[1771694486968,0.55348978,86.125,86.1,4.14494356]
[1771694488847,3.69383402,86.157,86.08,4.14494356]
[1771694488848,0.55348978,86.119,86.08,4.14494356]
[1771694489164,0.55348978,86.109,86.076,0.21059211]
[1771694489349,0.55348978,86.109,86.072,0.21179951]
[1771694490459,0.55348978,86.107,86.072,0.21179951]
[1771694492672,0.55348978,86.105,86.072,0.21179951]
[1771694493060,0.55348978,86.105,86.073,11.61804514]
[1771694493258,0.55348978,86.105,86.074,0.21534133]
[1771694498984,0.56802928,86.103,86.08,4.14494356]
[1771694500582,0.56802928,86.101,86.072,11.61807802]
[1771694500969,11.61413207,86.102,86.066,0.22530388]
[1771694500970,0.56802928,86.099,86.066,0.22530388]
[1771694502170,0.56802928,86.099,86.07,4.14494356]
[1771694502671,0.56802928,86.097,86.07,4.14494356]
[1771694508302,11.61494146,86.096,86.071,0.23332518]
[1771694508591,0.56802928,86.095,86.071,0.23332518]
[1771694512182,0.56802928,86.089,86.051,0.23613958]
[1771694512897,0.56802928,86.079,86.051,0.23613958]
[1771694514079,0.56802928,86.077,86.05,15.76607802]
[1771694514786,0.56802928,86.077,86.051,0.23887778]
[1771694517087,0.56802928,86.077,86.052,11.62088039]
[1771694517302,0.56802928,86.083,86.061,0.24064391]
[1771694517803,0.56802928,86.099,86.071,0.24151298]
[1771694519496,0.56802928,86.097,86.071,0.24151298]
[1771694520695,11.61494146,86.096,86.071,0.24151298]
[1771694521000,0.56802928,86.095,86.071,0.24151298]
[1771694522404,0.56802928,86.095,86.07,4.14494356]
[1771694522705,11.61602081,86.088,86.06,4.14494356]
[1771694523002,0.56802928,86.087,86.06,4.14494356]
[1771694524808,0.56802928,86.085,86.056,0.24569695]
[1771694525009,0.56802928,86.085,86.06,4.14494356]
[1771694526594,0.56802928,86.085,86.05,4.14494356]
[1771694526903,0.56802928,86.083,86.05,4.14494356]
[1771694527109,0.56802928,86.079,86.044,0.24886447]
[1771694528295,0.56802928,86.079,86.051,0.2511588]
[1771694528488,0.56802928,86.079,86.06,4.39610236]
[1771694529196,0.57710435,86.077,86.06,4.14494356]
[1771694529799,0.57710435,86.077,86.05,4.14494356]
[1771694531012,11.61737029,86.078,86.03,4.39832004]
[1771694531013,0.5839481,86.069,86.03,4.39832004]
[1771694531308,0.5839481,86.067,86.031,0.25337648]
[1771694532920,0.5839481,86.065,86.031,0.25337648]
[1771694533411,0.5839481,86.065,86.033,0.25482219]
[1771694533791,0.5839481,86.088,86.051,0.25412954]
[1771694534118,0.5839481,86.088,86.061,0.25412954]
[1771694534119,0.5839481,86.087,86.061,0.25412954]
[1771694534491,0.5839481,86.087,86.06,4.14494356]
[1771694536116,0.5839481,86.085,86.056,0.25344376]
[1771694536613,0.5839481,86.085,86.017,0.14216157]
[1771694536614,0.5839481,86.152,86.08,0.25209404]
[1771694536800,0.5839481,86.152,86.12,4.14494356]
[1771694538018,0.5839481,86.15,86.12,4.14433564]
[1771694538918,0.5839481,86.15,86.12,4.39509081]
[1771694539112,0.5839481,86.148,86.12,4.39509081]
[1771694541420,0.5839481,86.146,86.12,4.39509081]
[1771694542319,0.5839481,86.146,86.12,0.25075517]
[1771694555132,0.5839481,86.144,86.12,0.25075517]
[1771694556643,0.5839481,86.142,86.12,0.25075517]
[1771694559345,0.60548903,86.14,86.12,0.25075517]
[1771694561824,0.60548903,86.14,86.111,0.23697053]
[1771694562238,0.60548903,86.138,86.111,0.23697053]
[1771694566946,0.60548903,86.138,86.113,0.23455476]
[1771694567748,0.60548903,86.154,86.121,0.23408993]
[1771694569054,0.60548903,86.149,86.121,0.23408993]
[1771694570748,0.60548903,86.149,86.112,0.23270718]
[1771694570951,0.60548903,86.139,86.107,0.23270718]
[1771694572755,40.62539899,86.153,86.107,0.23270718]
[1771694572756,0.60548903,86.137,86.107,0.23270718]
[1771694573054,0.60548903,86.137,86.107,11.6133317]
[1771694573260,0.60548903,86.137,86.111,0.23181702]
[1771694576461,0.60548903,86.147,86.113,0.23010299]
[1771694576659,0.60548903,86.147,86.088,0.23010299]
[1771694576959,0.60548903,86.139,86.101,0.23010299]
[1771694581148,0.60548903,86.149,86.121,0.22846203]
[1771694582763,0.60548903,86.159,86.13,4.14433564]
[1771694582943,0.60548903,86.159,86.124,0.22767403]
[1771694582944,0.60548903,86.158,86.124,0.22767403]
[1771694583149,0.60548903,86.156,86.124,0.22767403]
[1771694583350,0.60548903,86.156,86.12,4.14433564]
[1771694583351,0.60548903,86.183,86.15,4.14433564]
[1771694583553,0.60548903,86.191,86.161,0.22728431]
[1771694583749,0.60548903,86.191,86.17,4.14433564]
[1771694584169,0.60548903,86.191,86.165,0.22728431]
[1771694587656,0.60068938,86.199,86.17,4.14433564]
[1771694587855,0.1,86.2,86.18,4.14433564]
[1771694588060,0.1,86.2,86.181,0.12538103]
[1771694588670,0.1,86.21,86.161,40.62162694]
[1771694588671,0.1,86.21,86.19,4.2694236]
[1771694589460,0.1,86.21,86.2,4.14433564]
[1771694589666,0.1,86.21,86.191,0.12480103]
[1771694589866,0.1,86.21,86.192,0.12480103]
[1771694590177,0.60068938,86.199,86.161,0.12480103]
[1771694591769,0.6041339,86.187,86.152,0.12395163]
[1771694591970,0.6041339,86.193,86.161,0.12395163]
[1771694592673,0.6041339,86.179,86.141,0.12367061]
[1771694594480,11.60388962,86.178,86.141,11.73254443]
[1771694594685,0.6041339,86.177,86.142,0.12312384]
[1771694597079,4.14433564,86.17,86.142,0.12312384]
[1771694597279,0.6041339,86.169,86.142,0.12312384]
[1771694607512,0.6041339,86.167,86.142,0.12312384]
[1771694608909,0.6041339,86.159,86.128,0.11970456]
[1771694609207,0.6041339,86.159,86.129,11.61049123]
[1771694609794,0.6041339,86.159,86.128,0.11970456]
[1771694610396,0.6041339,86.157,86.128,0.11970456]
[1771694610701,0.6041339,86.149,86.128,0.11970456]
[1771694615698,0.6041339,86.168,86.131,0.11817395]
[1771694617914,0.60607776,86.159,86.122,0.11754295]
[1771694618296,0.60607776,86.149,86.122,0.11754295]
[1771694618615,0.60607776,86.149,86.112,0.11733434]
[1771694626622,4.14317403,86.14,86.112,0.11733434]
[1771694626829,0.60607776,86.139,86.112,0.11733434]
[1771694627008,0.60607776,86.139,86.106,40.76336265]
[1771694627609,0.60607776,86.139,86.107,0.11560643]
[1771694640722,29.01685146,86.157,86.107,0.11560643]
[1771694640723,0.60607776,86.144,86.107,0.11560643]
[1771694641046,0.60607776,86.156,86.107,0.11560643]
[1771694643341,0.60607776,86.154,86.107,0.11560643]
[1771694645741,29.01211231,86.171,86.107,0.11560643]
[1771694645742,0.60607776,86.149,86.107,0.11560643]
[1771694648042,0.60607776,86.149,86.108,0.11222725]
[1771694650340,11.60783482,86.149,86.108,11.72555005]
[1771694650528,0.56435442,86.148,86.109,0.11167179]
[1771694673577,0.56435442,86.139,86.109,0.11167179]
[1771694678774,0.56435442,86.139,86.108,11.6133228]
[1771694678973,0.54730881,86.129,86.108,11.6133228]
[1771694679752,0.54730881,86.129,86.096,11.61480747]
[1771694679968,0.54730881,86.129,86.096,11.72296896]
[1771694680166,0.54730881,86.127,86.097,0.10816149]
[1771694681357,0.54730881,86.125,86.097,0.10816149]
[1771694681570,0.54730881,86.119,86.087,0.10797222]
[1771694689464,0.54730881,86.119,86.082,29.0418381]
[1771694689800,0.54730881,86.119,86.083,0.10727475]
[1771694696090,0.54730881,86.117,86.083,0.10727475]
[1771694696383,0.54730881,86.109,86.083,0.10727475]
[1771694697905,11.61074436,86.128,86.083,0.10727475]
[1771694698691,0.28432314,86.151,86.083,0.10727475]
[1771694698866,0.28432314,86.151,86.076,3.69383402]
[1771694698867,11.60644854,86.159,86.093,0.55624352]
[1771694699077,11.60644854,86.159,86.089,5.36086188]
[1771694699078,4.14463306,86.16,86.108,0.55624352]
[1771694699489,11.47251972,86.194,86.113,0.55624352]
[1771694699688,11.47251972,86.194,86.07,214.9413268]
[1771694699689,0.5456131,86.159,86.12,0.55624352]
[1771694700170,0.5456131,86.149,86.1,0.55624352]
[1771694700380,0.5456131,86.129,86.1,0.55624352]
[1771694700774,0.5456131,86.129,86.102,0.55624352]
[1771694702293,0.5456131,86.129,86.101,11.61426696]
[1771694703300,0.5456131,86.129,86.102,0.55624352]
[1771694703493,0.5456131,86.139,86.102,0.55624352]
[1771694707682,0.58721159,86.137,86.104,0.56400893]
[1771694708886,4.14463306,86.12,86.086,11.61629068]
[1771694709090,0.58721159,86.119,86.086,11.61629068]
[1771694709601,0.58721159,86.119,86.087,0.56400893]
[1771694709790,0.58721159,86.119,86.088,11.61602081]
[1771694709991,0.58721159,86.109,86.088,11.61602081]
[1771694711689,0.60313602,86.153,86.081,5.64518502]
[1771694711892,0.60313602,86.153,86.089,5.64518502]
[1771694712295,0.60313602,86.153,86.088,5.64518502]
[1771694712491,0.60313602,86.153,86.087,0.28432314]
[1771694712806,0.60313602,86.153,86.089,5.64518502]
[1771694713004,0.60313602,86.153,86.13,4.14368727]
[1771694716393,0.60313602,86.153,86.091,5.64518502]
[1771694716587,0.60313602,86.153,86.13,4.14368727]
[1771694716984,0.60313602,86.153,86.12,4.14368727]
[1771694718797,0.60313602,86.153,86.121,11.61156976]
[1771694720798,0.60313602,86.151,86.091,0.28432314]
[1771694721002,0.60313602,86.149,86.11,4.14420476]
[1771694721701,3.69383402,86.176,86.091,0.28432314]
[1771694721702,0.60313602,86.186,86.13,4.14420476]
[1771694721886,0.60313602,86.186,86.14,4.14420476]
[1771694722783,0.60313602,86.184,86.141,11.60887382]
[1771694723191,0.60313602,86.184,86.135,11.60966625]
[1771694723784,0.60313602,86.182,86.135,11.60966625]
[1771694724281,0.60313602,86.18,86.135,11.60966625]
[1771694725395,0.60313602,86.179,86.14,4.14420476]
[1771694727495,0.60313602,86.177,86.14,4.14420476]
[1771694731911,0.60313602,86.175,86.14,4.14420476]
[1771694733010,0.60313602,86.173,86.14,4.14420476]
[1771694734714,0.60313602,86.208,86.139,3.69383402]
[1771694734917,11.60119724,86.198,86.16,4.14420476]
[1771694735216,0.60313602,86.197,86.17,4.14420476]
[1771694737803,0.60313602,86.197,86.18,4.14420476]
[1771694739408,0.60313602,86.197,86.178,11.60386688]
[1771694740712,0.60313602,86.197,86.17,4.14420476]
[1771694741703,0.60313602,86.197,86.171,11.60483225]
[1771694743405,11.59998014,86.208,86.18,4.14420476]
[1771694743406,0.60313602,86.208,86.18,4.14420476]
[1771694743728,0.60313602,86.208,86.171,11.60483225]
[1771694746623,0.60313602,86.206,86.18,4.14420476]
[1771694747327,0.70313602,86.21,86.19,4.14420476]
[1771694747722,0.70313602,86.21,86.18,4.14420476]
[1771694748926,0.1,86.21,86.19,4.14420476]
[1771694749624,0.1,86.21,86.181,40.61219989]
[1771694749625,0.1,86.24,86.201,0.49317185]
[1771694749808,4.24420476,86.24,86.194,0.49317185]
[1771694750010,4.14420476,86.23,86.19,4.14420476]
[1771694750415,0.28432314,86.239,86.191,0.49317185]
[1771694750612,40.86920932,86.239,86.191,0.49317185]
[1771694751430,40.58488618,86.239,86.193,0.49348648]
[1771694751623,0.59398653,86.238,86.201,0.49379465]
[1771694754539,0.59398653,86.236,86.201,0.49379465]
[1771694755134,0.59398653,86.236,86.202,11.60065891]
[1771694757532,0.1,86.24,86.211,0.49558597]
[1771694759729,0.1,86.24,86.212,11.59931332]
[1771694759935,0.1,86.25,86.214,0.59643754]
[1771694760135,4.24420476,86.25,86.214,0.59643754]
[1771694760928,40.58018063,86.249,86.214,0.59643754]
[1771694761144,4.14420476,86.24,86.202,0.59643754]
[1771694761839,0.59398653,86.237,86.202,0.59643754]
[1771694762347,0.59398653,86.244,86.204,0.59643754]
[1771694762538,0.59398653,86.239,86.204,0.59643754]
[1771694763636,0.59398653,86.237,86.204,0.59643754]
[1771694765050,0.1,86.25,86.221,0.59643754]
[1771694765345,0.59398653,86.249,86.221,0.59643754]
[1771694766547,0.59398653,86.247,86.214,0.59643754]
[1771694766725,4.24420476,86.25,86.217,0.28432314]
[1771694766726,0.1,86.25,86.217,0.28432314]
[1771694766928,0.1,86.25,86.215,11.88323284]
[1771694766929,0.1,86.25,86.24,4.14420476]
[1771694767132,0.1,86.26,86.241,0.59643754]
[1771694767442,0.59398653,86.258,86.231,0.59643754]
[1771694768650,0.1,86.26,86.232,0.56787193]
[1771694768944,0.1,86.27,86.241,0.56787193]
[1771694768945,0.54249207,86.268,86.241,0.56787193]
[1771694769148,0.1,86.28,86.243,0.56787193]
[1771694769325,0.1,86.28,86.271,0.56787193]
[1771694770038,0.1,86.28,86.27,4.14420476]
[1771694771033,0.1,86.29,86.272,0.58548829]
[1771694771632,4.14420476,86.28,86.207,0.58548829]
[1771694771845,0.59275318,86.269,86.231,0.58548829]
[1771694772045,0.1,86.29,86.207,40.59995128]
[1771694772046,0.1,86.29,86.261,0.58548829]
[1771694772248,0.69275318,86.29,86.261,0.58548829]
[1771694773336,0.59275318,86.288,86.254,0.58548829]
[1771694773550,0.59275318,86.288,86.251,11.59406847]
[1771694774454,0.1,86.29,86.271,0.58548829]
[1771694774835,0.1,86.29,86.272,0.58548829]
[1771694776849,0.1,86.29,86.251,28.98517118]
[1771694776850,0.60720676,86.318,86.28,4.14420476]
[1771694777748,0.60720676,86.318,86.281,0.28432314]
[1771694777956,0.60720676,86.318,86.29,4.14420476]
[1771694778850,1e-08,86.32,86.31,4.14420476]
[1771694779057,1e-08,86.32,86.3,4.14420476]
[1771694779552,0.60720676,86.309,86.27,4.14420476]
[1771694779939,0.60720676,86.309,86.27,4.12973361]
[1771694780141,1e-08,86.32,86.255,11.5935308]
[1771694780142,0.60720676,86.289,86.255,11.5935308]
[1771694781033,0.60720676,86.287,86.255,11.5935308]
[1771694781236,0.60720676,86.279,86.24,4.12973361]
[1771694781653,0.60720676,86.287,86.26,4.12973361]
[1771694782175,0.60720676,86.287,86.25,4.12973361]
[1771694782856,0.60720676,86.279,86.25,4.12973361]
[1771694783564,12.197539,86.279,86.25,4.12973361]
[1771694783757,0.60720676,86.278,86.25,4.12973361]
[1771694784061,0.60720676,86.278,86.247,11.59452148]
[1771694784438,0.60720676,86.303,86.27,4.12973361]
[1771694784653,0.60720676,86.303,86.248,0.28432314]
[1771694784654,0.60720676,86.303,86.28,4.12973361]
[1771694785237,0.60720676,86.303,86.27,4.12973361]
[1771694785638,0.60720676,86.303,86.271,11.59138064]
[1771694786153,4.12973361,86.33,86.29,0.58548829]
[1771694786360,4.12973361,86.31,86.272,0.58548829]
[1771694787258,4.12973361,86.3,86.272,0.58548829]
[1771694787464,4.12973361,86.29,86.261,12.17821269]
[1771694788158,0.59275318,86.289,86.261,11.5927244]
[1771694788338,4.12973361,86.28,86.261,11.5927244]
[1771694788542,0.59275318,86.279,86.245,3.69383402]
[1771694788745,0.59275318,86.279,86.245,4.27932231]
[1771694789146,0.59275318,86.279,86.246,0.86981143]
[1771694789448,0.59275318,86.279,86.247,11.59460618]
[1771694790067,4.12973361,86.27,86.247,11.59460618]
[1771694790767,0.59275318,86.269,86.241,11.59537312]
[1771694790944,0.59275318,86.259,86.232,11.59653236]
[1771694791571,0.59275318,86.239,86.207,11.59998608]
[1771694791868,0.59275318,86.239,86.208,0.28432314]
[1771694792165,0.59275318,86.239,86.208,0.58548829]
[1771694792674,0.59275318,86.239,86.209,0.28432314]
[1771694793360,4.12973361,86.23,86.207,11.59998608]
[1771694793548,4.72248679,86.23,86.201,11.60079349]
[1771694793755,0.59275318,86.229,86.201,11.60079349]
[1771694794472,11.08164895,86.22,86.201,11.60079349]
[1771694794640,0.54440466,86.219,86.201,11.60079349]
[1771694795572,0.54440466,86.219,86.19,11.60227404]
[1771694795873,0.54440466,86.219,86.19,12.18776233]
[1771694796164,11.08164895,86.23,86.2,11.66713724]
[1771694796368,11.08164895,86.23,86.201,0.58548829]
[1771694796748,0.59275318,86.229,86.201,0.58548829]
[1771694798473,0.59275318,86.229,86.199,11.60097463]
[1771694800467,0.59275318,86.229,86.193,0.61014407]
[1771694800673,0.58951822,86.228,86.195,0.61014407]
[1771694801356,0.58951822,86.219,86.188,11.6025017]
[1771694801679,0.58951822,86.209,86.188,11.6025017]
[1771694802773,0.58951822,86.209,86.175,29.62062501]
[1771694802774,0.58951822,86.199,86.176,12.214303]
[1771694802989,0.58951822,86.199,86.164,11.60577503]
[1771694802990,0.51098138,86.199,86.164,11.60577503]
[1771694803157,0.51098138,86.199,86.165,0.61014407]
[1771694803979,0.51098138,86.199,86.166,11.60550565]
[1771694804560,11.08164895,86.19,86.166,11.60550565]
[1771694805473,0.58951822,86.189,86.16,11.80630805]
[1771694805682,0.58951822,86.179,86.16,11.80630805]
[1771694806978,11.08164895,86.19,86.16,11.80630805]
[1771694807186,0.58951822,86.189,86.16,11.80630805]
[1771694807587,0.58951822,86.189,86.16,22.887957]
[1771694810573,0.58951822,86.189,86.16,23.49810107]
[1771694811283,0.58951822,86.189,86.162,11.60604442]
[1771694820899,0.58951822,86.169,86.141,0.61014407]
[1771694821103,0.58951822,86.169,86.136,11.60942591]
[1771694821893,0.58951822,86.159,86.131,11.61014578]
[1771694822102,0.58951822,86.149,86.13,0.2]
[1771694823404,0.58951822,86.147,86.115,0.61014407]
[1771694823584,0.58951822,86.139,86.111,11.61291821]
[1771694824682,0.58951822,86.139,86.112,0.61014407]
[1771694825607,0.58951822,86.139,86.12,4.14137439]
[1771694825796,0.58951822,86.139,86.112,0.61014407]